Cogmind - Beta 16.1 @@@ ROGUE MODE // 2026.03.26 @ 09:57:35 Player: Evilsquid Result: Destroyed by G-34 Mercenary with Small Laser Performance ------------- Evolutions (0) 0 Regions Visited (1) 200 Robots Destroyed (29) 145 Value Destroyed (636) 636 Prototype IDs (0) 0 Alien Tech Used (0) 0 Bonus (0) 0 TOTAL SCORE: 981 Bonus ------- None Cogmind --------- Core Integrity 0/250 Matter 178/300 Energy 248/250 System Corruption 0% Temperature Cool (6) Movement Treading (240) Ox1 Location -10/Materials Parts ------- > --- POWER (1) -------- Ion Engine > --- PROPULSION (2) --- Improved Treads Improved Treads > --- UTILITY (2) ------ High-capacity Storage Unit Core Shielding > --- WEAPON (2) ------- Light Assault Rifle Light Assault Rifle > --- INVENTORY (20) --- Ion Engine Light Ion Engine Improved Treads Improved Treads Heat Sink Heat Sink Disposable Heat Sink Huge Storage Unit Small Matter Pod (50) Sensor Array Signal Interpreter Improved Terrain Scanner Terrain Scan Processor Propulsion Shielding Grenade Launcher Grenade Launcher Mining Laser Hammer Peak State ------------ > --- POWER ------------ Ion Engine > --- PROPULSION ------- Improved Treads Improved Treads > --- UTILITY ---------- High-capacity Storage Unit Seismic Detector > --- WEAPON ----------- Assault Rifle Light Cannon > --- INVENTORY -------- Ion Engine Light Ion Engine Improved Treads Improved Treads Heat Sink Heat Sink Disposable Heat Sink Small Matter Pod Improved Terrain Scanner Terrain Scan Processor Light Assault Rifle Grenade Launcher Mining Laser Hammer [Rating: 11] Favorites ----------- Power Ion Engine Engine Ion Engine Propulsion Improved Treads Treads Improved Treads Hover Unit Improved Hover Unit Utility High-capacity Storage Unit Device Seismic Detector Storage High-capacity Storage Unit Protection Core Shielding Weapon Assault Rifle Energy Gun Small Laser Ballistic Gun Assault Rifle Ballistic Cannon Light Cannon Launcher Grenade Launcher Special Weapon Mining Laser Impact Weapon Hammer Build | -11 -10 ------- Run | Yrd Mat Slots Evolved . | . . Power . | . . Propulsion . | . . Utility . | . . Weapon . | . . Parts Attached 26 | 10 16 Power 3 | 1 2 Engine 3 | 1 2 Core . | . . Reactor . | . . Propulsion 8 | 2 6 Treads 6 | 2 4 Leg . | . . Wheel . | . . Hover 2 | . 2 Flight . | . . Utility 7 | 5 2 Device 4 | 4 . Storage 2 | 1 1 Processor . | . . Hackware . | . . Protection 1 | . 1 Artifact . | . . Weapon 8 | 2 6 Energy Gun 1 | 1 . Energy Cannon . | . . Ballistic Gun 3 | 1 2 Ballistic Cannon 1 | . 1 Launcher 1 | . 1 Special Weapon 1 | . 1 Impact Weapon 1 | . 1 Slashing Weapon . | . . Piercing Weapon . | . . Special Melee Weapon . | . . Unidentified Prototypes . | . . Parts Lost 3 | . 3 Power . | . . Propulsion . | . . Utility 1 | . 1 Weapon 2 | . 2 Highest Loss Streak 3 | . 3 To Critical Strikes . | . . Average Backups 13 | 5 14 Power 1 | . 1 Propulsion 2 | 2 2 Utility 6 | . 7 Weapon 3 | 1 3 Tool/Special . | . . Unused Backups 17 | 1 16 Power 1 | . 1 Propulsion 6 | 1 5 Utility 9 | . 9 Weapon 1 | . 1 Tool/Special . | . . Average Slot Usage (%) 99 | . 99 Engine 14 | . 14 Treads 26 | . 26 Hover 1 | . 1 Device 8 | . 8 Storage 14 | . 14 Protection 4 | . 4 Ballistic Gun 18 | . 18 Ballistic Cannon 6 | . 6 Launcher 2 | . 2 Peak Build Rating 11 | 9 11 Average Rating 10 | 6 10 On Entrance 4 | . 8 Avg Prop Armor Cover (%) . | . . Naked Turns . | . . Heaviest Build 52 | 14 52 Greatest Support 46 | 40 46 Greatest Overweight (x) 1 | 1 1 Average Overweight (x) . | . . Largest Inventory Capacity 20 | 8 20 Average Capacity 17 | 7 18 Most Carried 18 | 8 18 Average Carried 13 | 5 14 Final Capacity 20 | 8 20 Final Carried 18 | 8 18 Class Distribution -------------------- 100% | Mutant Dominant Class ---------------- Mutant | -10/Materials Resources | -11 -10 ----------- Run | Yrd Mat Matter Collected 813 | 354 459 Remotely 54 | 54 . Salvage Created 819 | 208 611 Parts 61 | 17 44 Haulers Intercepted . | . . Recyclers Shooed . | . . Parts Field Recycled . | . . Retrieved Matter . | . . Parts Self-Destructed . | . . Prevented . | . . Parts Restored . | . . Kills | -11 -10 ------- Run | Yrd Mat Combat Hostiles Destroyed 20 | . 20 Guns 8 | . 8 Cannons 6 | . 6 AOE 6 | . 6 Classes Destroyed 7 | 3 4 Worker 2 | 2 . Builder 1 | . 1 Tunneler 4 | 4 . Recycler 1 | 1 . Watcher 1 | . 1 Swarmer 6 | . 6 Grunt 14 | . 14 Best Kill Streak 4 | 4 4 Combat Bots Only 4 | . 4 Max Kills in Single Turn 2 | 1 2 Gunslinging . | . . Exploded 2 | . 2 Melee . | . . Uniques/NPCs Destroyed . | . . Combat | -11 -10 -------- Run | Yrd Mat Hostile Shots Fired 94 | . 94 Missed 27 | . 27 Hits 67 | . 67 Projectile 67 | . 67 Damage Taken 1091 | . 1091 Core 251 | . 251 Absorbed by Shields . | . . Redirected to Shielding 2 | . 2 Regen/Repaired (Parts) 117 | . 117 Core Remaining (%) 100 | 100 . Volleys Fired 87 | 18 69 Largest 2 | 2 2 Hottest 100 | 60 100 Shots Fired 159 | 36 123 Gun 135 | 36 99 Cannon 18 | . 18 Launcher 5 | . 5 Special 1 | . 1 Kinetic 134 | 18 116 Thermal 20 | 18 2 Explosive 5 | . 5 Electromagnetic . | . . Robot Hit Streak 10 | 7 10 Robot Miss Streak 3 | 2 3 Penetration Max . | . . Secondary Targets 2 | . 2 Max Gunslinging Chain 1 | . 1 Shots Hit Robots 102 | 22 80 Core Hits 44 | 8 36 Critical Kills . | . . Critical Parts Destroyed 1 | . 1 Critical Strikes 2 | . 2 Destroy 1 | . 1 Blast 1 | . 1 Melee Attacks 2 | . 2 Impact 2 | . 2 Slashing . | . . Piercing . | . . Sneak Attacks . | . . Combat Hostiles . | . . Follow-up Attacks . | . . Damage Inflicted 1433 | 266 1167 Guns 929 | 266 663 Cannons 254 | . 254 Explosions 250 | . 250 Melee . | . . Ramming . | . . Kinetic 1037 | 120 917 Thermal 146 | 146 . Explosive 250 | . 250 Electromagnetic . | . . Impact . | . . Slashing . | . . Piercing . | . . Highest Corruption . | . . Average Corruption . | . . Corruption Purged . | . . Corruption Blocked . | . . Overload Shots . | . . Overflow Damage 15 | . 15 Projectiles 12 | . 12 Explosions 3 | . 3 Melee . | . . Knockbacks 3 | . 3 Impact . | . . Kinetic 3 | . 3 Secondary . | . . Self-Inflicted Damage 24 | . 24 Shots 1 | . 1 Rammed . | . . Targets Rammed . | . . Kicked . | . . Crushed . | . . Highest Temperature 24 | . 24 Average Temperature 7 | . 7 Received Heat Transfer 336 | . 336 Siege Activations . | . . Martial Activations . | . . Shielding Activations . | . . Robots Disrupted . | . . Combat Hostiles . | . . Robots Corrupted . | . . Combat Hostiles . | . . Parts Fried . | . . Impact Corruptions . | . . Robots Melted . | . . Combat Hostiles . | . . Parts Melted . | . . Heat Transferred 325 | 325 . Parts Sabotaged . | . . Parts Stolen . | . . Parts Stripped . | . . Power Chain Reactions . | . . Alert | -11 -10 ------- Run | Yrd Mat Maximum Alert Level 1 | . 1 Low Security (%) 98 | 100 97 Level 1 1 | . 2 Level 2 . | . . Level 3 . | . . Level 4 . | . . Level 5 . | . . High Security . | . . Max Security . | . . Peak Influence 207 | 10 207 Initial . | . . Average 64 | 1 72 Influence Increases 631 | 35 596 Destroy 0b10 Robot/C 400 | . 400 Destroy 0b10 Robot/NC 45 | 35 10 Destroy Leader 82 | . 82 Successful Hack 9 | . 9 Disable Machine 45 | . 45 Destroy Structure 35 | . 35 Lose Combat Pursuer 15 | . 15 Influence Decreases 535 | 35 500 Time Decay 440 | 35 405 Lost Part 30 | . 30 Purge Threat 65 | . 65 Squads Dispatched 6 | . 6 Investigation 5 | . 5 Extermination . | . . Reinforcement 1 | . 1 Assault . | . . Garrison . | . . Intercept . | . . Searches Triggered . | . . Construction Impeded . | . . Haulers Reinforced . | . . Active Scanning Responses . | . . Cargo Convoy Interrupts . | . . Stealth | -11 -10 --------- Run | Yrd Mat Distress Signals . | . . Communications Jammed . | . . Distress Signals . | . . Times Spotted 28 | . 28 Peak Tracking Total 4 | . 4 Tactical Retreats 1 | . 1 Traps | -11 -10 ------- Run | Yrd Mat Traps Triggered 3 | . 3 Indirectly . | . . Trap Hack Attempts . | . . Triggered . | . . Disarmed . | . . Reprogrammed . | . . Reused . | . . Traps Extracted . | . . Installed . | . . Triggered . | . . Machines | -11 -10 ---------- Run | Yrd Mat Machines Disabled 3 | . 3 Max in Single Turn 1 | . 1 Machines Repaired . | . . Machines Dismantled . | . . Machines Sabotaged . | . . Overloaded Fab Kills . | . . Hacking | -11 -10 --------- Run | Yrd Mat Machines Accessed 5 | . 5 Terminals 3 | . 3 Fabricators . | . . Repair Stations 1 | . 1 Recycling Units 1 | . 1 Scanalyzers . | . . Garrison Access . | . . Total Hacks 12 | . 12 Successful 9 | . 9 Failed 3 | . 3 Catastrophic 1 | . 1 Database Lockouts . | . . Manual 3 | . 3 Terminals 7 | . 7 Fabricators . | . . Repair Stations 3 | . 3 Recycling Units 2 | . 2 Scanalyzers . | . . Garrison Access . | . . Terminal Hacks 4 | . 4 Alert Level 2 | . 2 Unreport Threat 1 | . 1 Hauler Manifests 1 | . 1 Fabricator Hacks . | . . Repair Station Hacks 2 | . 2 Scan Component 1 | . 1 Repair 1 | . 1 Recycling Unit Hacks 2 | . 2 Report Inventory 2 | . 2 Scanalyzer . | . . Garrison Access Hacks . | . . Unauthorized Hacks 1 | . 1 Terminals 1 | . 1 Botnet 1 | . 1 Fabricators . | . . Repair Stations . | . . Recycling Units . | . . Scanalyzers . | . . Garrison Access . | . . Data Cores Recovered . | . . Used . | . . Hacking Detections 2 | . 2 Full Trace Events 2 | . 2 Feedback Events . | . . Feedback Blocked . | . . Robot Schematics Acquired . | . . Robots Built . | . . Authchips . | . . Time . | . . Total Robot Build Rating . | . . Part Schematics Acquired . | . . Parts Built . | . . Authchips . | . . Time . | . . Total Part Build Rating . | . . Part Studies Acquired . | . . Parts Repaired 1 | . 1 Time 32 | . 32 Parts Recycled . | . . Recycled Matter . | . . Retrieved Matter . | . . Retrieved Components . | . . Parts Scanalyzed . | . . Part Schematics Acquired . | . . Parts Damaged . | . . Bothacking | -11 -10 ------------ Run | Yrd Mat Used RIF Installer . | . . Robots Hacked . | . . Non-combat . | . . Combat . | . . Robot Hacks Applied . | . . Relay Couplers Released . | . . Fabnet Peak Effective % . | . . Robots Rewired . | . . Allies Hacked . | . . Hacks Repelled . | . . Allies | -11 -10 -------- Run | Yrd Mat Total Allies . | . . Largest Group . | . . Highest-Rated Group . | . . Highest-Rated Ally . | . . Total Orders . | . . Ally Attacks . | . . Total Damage . | . . Kills . | . . Allies Corrupted . | . . Allies Melted . | . . Intel | -11 -10 ------- Run | Yrd Mat Active Infowar (turns) 1289 | 76 1213 Terrain 62 | 62 . Seismic 1227 | 14 1213 Robot Analysis Total . | . . Derelict Logs Recovered . | . . Drone Launches . | . . Drone Recoveries . | . . Exploration | -11 -10 ------------- Run | Yrd Mat Turns Passed 2203 | 246 1957 Spaces Moved 799 | 98 701 Core 8 | 8 . Treads 722 | 90 632 Legs . | . . Wheels . | . . Hover 69 | . 69 Flight . | . . Fastest Speed 50 | 50 56 Average Speed 207 | 153 215 Slowest Speed 240 | 160 240 Overloaded Moves . | . . Propulsion Burnouts . | . . Robots Hopped . | . . Potential Cave-ins . | . . Cave-ins Triggered 1 | . 1 Exploration Rate (%) 33 | 4 63 Regions Visited 1 Branch Regions . Pre-discovered Areas . | . . Known Exits Taken . | . . Unknown Exits Taken 1 | 1 . Scrap Searched . | . . Spaces Dug 2 | . 2 Terrain Destroyed 34 | . 34 Melee 2 | . 2 Projectile . | . . AOE 32 | . 32 Terrain Rammed . | . . Walls Destroyed . | . . Machines Disabled . | . . Actions | -11 -10 --------- Run | Yrd Mat Total 1189 | 156 1033 Wait 216 | 17 199 Move 798 | 97 701 Hop . | . . Pick Up 36 | 12 24 Fast Attach 6 | 4 2 Attach 9 | 3 6 Detach 1 | . 1 Swap 18 | 3 15 Drop 16 | 2 14 Fire 87 | 18 69 Melee 2 | . 2 Ram . | . . Kick . | . . Crush . | . . Escape Stasis . | . . Rewire . | . . Trap . | . . Miscellaneous . | . . Route ------- -11/Scrapyard -10/Materials (discovered 2 exits: [*Mat] / [*Min]) History --------- Turn | Location | Event 13 | -11/Scrapyard | Discovered new exit (range 14) 247 | -11/Scrapyard | Entered Materials 315 | -10/Materials | Build established: Mutant 628 | -10/Materials | Discovered new exit (range 15) 926 | -10/Materials | Discovered new exit (range 8) 1076 | -10/Materials | Crushed by falling debris 1076 | -10/Materials | Core integrity fell below 50% 1076 | -10/Materials | Core integrity fell below 20% 1458 | -10/Materials | Repaired Imp. Treads 1505 | -10/Materials | Lost 3 parts (1u2w) 2204 | -10/Materials | Destroyed by G-34 Mercenary with Small Laser Last Messages --------------- 01527_ U-05 Engineer lays Concrete. 01528_ U-05 Engineer builds a Wall. 01530_ U-05 Engineer lays Concrete. 01532_ U-05 Engineer builds a Wall. 01534_ U-05 Engineer lays Concrete. 01536_ U-05 Engineer builds a Wall. 01537_ U-05 Engineer lays Concrete. 01539_ U-05 Engineer builds a Wall. 01543_ Acquired Imp. Treads. 01557_ U-05 Engineer lays Concrete. 01709_ Acquired Grenade Launcher. 01719_ Acquired 2 matter. 01722_ Acquired 1 matter. 01810_ W-16 Scout suffers critical hit (Destroy). 01810_ Destroyed Hover Unit. 02100_ Acquired 1 matter. 02105_ Acquired 38 matter. 02112_ Acquired 48 matter. 02194_ W-16 Scout destroyed. 02196_ K-01 Serf collects debris. Map ----- +----------------------------------------------------+ | #######?# #?????????????????????????????? | | +## #?# #?????????????????????????????? | | #?? #?????????????????????????????? | | = #??? #?????????????????????????????? | | == ! #???? #??????? ""???????????????????? | | ## = =#???? #?????? ???????????????????? | | +####[###????? ##????? ????????????????????? | | # #??????## # ##### " ???????????????????? | | """ # ################### T ????????????????? | | """ # """ % * =%= ????????????????? | | """ + "R"% *% *% =%[ ????????????????? | | """ # " " %! % ????????????????? | | """ ## ##+### # ## #?????????????????? | | ## # #???? #?????????????????? | | !## !! # !!! #?????????????????????????? | | ###### ! # ! #?????????????????????????? | | ????## # !! #?????????????????????????? | | ????# ############????????????????????????? | | ###?# #?? ????? #????????????????????????? | | # #?# #?? ?? #????????????????????????? | | ########## #?? #????????????????????????? | | #??# #? """ """ #????????????????????????? | | """ #??# #? """ """ #????????????????????????? | | """ #??# #??""" """ #########????????????????? | | """ #??# #????" """ #""!"|""#????????????????? | | #??# #?????? #@"!"|" #????????????????? | | """ #??# #########+##g # #????????????? | | """ #??# % g t%* w ??????? | | """ #??#